bitfinex/quotes_BTCUSD_20240623
["timestamp","ask_amount","ask_price","bid_price","bid_amount"]
[1719120265747,2.36104516,64473.0,64472.0,0.14209186]
[1719120265967,2.36104516,64473.0,64472.0,0.07739186]
[1719120266645,2.30971406,64473.0,64472.0,0.07739186]
[1719120266931,2.36057213,64473.0,64472.0,0.07739186]
[1719120268211,2.36028039,64473.0,64472.0,0.07739186]
[1719120271432,2.36032022,64473.0,64472.0,0.07739186]
[1719120271957,1.30356422,64473.0,64472.0,0.07739186]
[1719120272318,2.83405522,64473.0,64472.0,0.07739186]
[1719120272528,1.30356422,64473.0,64472.0,0.07739186]
[1719120272740,2.79805522,64473.0,64472.0,0.07739186]
[1719120274342,2.79802303,64473.0,64472.0,0.07739186]
[1719120274583,2.77491603,64473.0,64472.0,0.07739186]
[1719120274796,2.72434206,64473.0,64472.0,0.07739186]
[1719120274968,2.77495305,64473.0,64472.0,0.07739186]
[1719120275866,2.21729811,64473.0,64472.0,0.07739186]
[1719120277614,2.21730438,64473.0,64472.0,0.07739186]
[1719120277875,2.16540438,64473.0,64472.0,0.07739186]
[1719120278164,2.21730438,64473.0,64472.0,0.07739186]
[1719120279332,2.19236638,64473.0,64472.0,0.07739186]
[1719120280026,2.14174906,64473.0,64472.0,0.07739186]
[1719120280227,2.19248589,64473.0,64472.0,0.07739186]
[1719120280652,2.15141367,64473.0,64472.0,0.07739186]
[1719120280968,2.1925582,64473.0,64472.0,0.07739186]
[1719120283776,2.19253833,64473.0,64472.0,0.07739186]
[1719120284175,2.19251838,64473.0,64472.0,0.07739186]
[1719120285414,2.19252413,64473.0,64472.0,0.07739186]
[1719120286832,2.19250452,64473.0,64472.0,0.07739186]
[1719120290001,2.19247226,64473.0,64472.0,0.07739186]
[1719120290330,2.14057226,64473.0,64472.0,0.07739186]
[1719120290528,2.19247226,64473.0,64472.0,0.07739186]
[1719120293065,2.19227635,64473.0,64472.0,0.07739186]
[1719120293491,2.1514135,64473.0,64472.0,0.07739186]
[1719120293689,2.19227635,64473.0,64472.0,0.07739186]
[1719120294452,2.18660826,64473.0,64472.0,0.07739186]
[1719120294689,2.18665396,64473.0,64472.0,0.07739186]
[1719120296225,2.18659714,64473.0,64472.0,0.07739186]
[1719120296589,2.18659714,64473.0,64472.0,0.00239186]
[1719120299318,2.18658243,64473.0,64472.0,0.00239186]
[1719120300361,1.29779143,64473.0,64472.0,0.00239186]
[1719120301375,2.60702543,64473.0,64472.0,0.00239186]
[1719120301580,2.5526054,64473.0,64472.0,0.00239186]
[1719120301889,2.54294096,64473.0,64472.0,0.00239186]
[1719120302088,2.5526054,64473.0,64472.0,0.00239186]
[1719120303118,2.55129714,64473.0,64472.0,0.00239186]
[1719120304662,2.55144513,64473.0,64472.0,0.00239186]
[1719120307517,2.55150615,64473.0,64472.0,0.00239186]
[1719120308552,2.49960615,64473.0,64472.0,0.00239186]
[1719120308758,2.55150615,64473.0,64472.0,0.00239186]
[1719120310711,2.55154465,64473.0,64472.0,0.00239186]
[1719120310894,2.19794765,64473.0,64472.0,0.00239186]
[1719120311094,2.24984765,64473.0,64472.0,0.00239186]
[1719120311740,1.29673165,64473.0,64472.0,0.00239186]
[1719120311940,2.71507165,64473.0,64472.0,0.00239186]
[1719120312229,2.66548418,64473.0,64472.0,0.00239186]
[1719120312503,2.71467938,64473.0,64472.0,0.00239186]
[1719120312665,2.71453359,64473.0,64472.0,0.00239186]
[1719120312902,2.7143878,64473.0,64472.0,0.00239186]
[1719120313114,2.61424201,64473.0,64472.0,0.00239186]
[1719120313847,2.61430021,64473.0,64472.0,0.00239186]
[1719120314051,2.61415442,64473.0,64472.0,0.00239186]
[1719120314457,2.61400863,64473.0,64472.0,0.00239186]
[1719120316818,2.56446332,64473.0,64472.0,0.00239186]
[1719120317157,2.61391391,64473.0,64472.0,0.00239186]
[1719120319940,2.61404579,64473.0,64472.0,0.00239186]
[1719120320344,2.56446332,64473.0,64472.0,0.00239186]
[1719120320547,2.6140228,64473.0,64472.0,0.00239186]
[1719120321540,2.61400837,64473.0,64472.0,0.00239186]
[1719120322961,2.56446332,64473.0,64472.0,0.00239186]
[1719120323186,2.61401455,64473.0,64472.0,0.00239186]
[1719120326183,2.61404451,64473.0,64472.0,0.00239186]
[1719120329034,2.60442813,64473.0,64472.0,0.00239186]
[1719120329212,2.61409279,64473.0,64472.0,0.00239186]
[1719120329422,2.61419754,64473.0,64472.0,0.00239186]
[1719120330638,2.6141919,64473.0,64472.0,0.00239186]
[1719120332239,2.61420142,64473.0,64472.0,0.00239186]
[1719120333035,2.61420142,64473.0,64472.0,0.00093066]
[1719120333611,2.55410842,64473.0,64472.0,0.00093066]
[1719120334889,1.29586142,64473.0,64472.0,0.00093066]
[1719120335042,3.27774642,64473.0,64472.0,0.00093066]
[1719120335244,3.22800832,64473.0,64472.0,0.00093066]
[1719120335451,3.27774548,64473.0,64472.0,0.00093066]
[1719120335655,3.09774548,64473.0,64472.0,0.00093066]
[1719120337037,3.04584548,64473.0,64472.0,0.00093066]
[1719120337244,3.09774548,64473.0,64472.0,0.00093066]
[1719120337357,3.04584548,64473.0,64472.0,0.00093066]
[1719120337556,3.09774548,64473.0,64472.0,0.00093066]
[1719120338430,3.09774587,64473.0,64472.0,0.00093066]
[1719120338792,2.91710807,64473.0,64472.0,0.00093066]
[1719120341465,2.87703198,64473.0,64472.0,0.00093066]
[1719120341672,2.91710948,64473.0,64472.0,0.00093066]
[1719120344494,2.90744482,64473.0,64472.0,0.00093066]
[1719120344692,2.9171083,64473.0,64472.0,0.00093066]
[1719120347746,2.66103197,64473.0,64472.0,0.00093066]
[1719120347973,2.70107931,64473.0,64472.0,0.00093066]
[1719120348111,2.70107932,64473.0,64472.0,0.00093066]
[1719120348533,2.69141466,64473.0,64472.0,0.00093066]
[1719120348711,1.91479531,64473.0,64472.0,0.00093066]
[1719120348906,1.96669531,64473.0,64472.0,0.00093066]
[1719120350751,1.91698332,64473.0,64472.0,0.00093066]
[1719120350963,1.96735008,64473.0,64472.0,0.00093066]
[1719120351738,1.9687449,64473.0,64472.0,0.00093066]
[1719120354033,1.96884541,64473.0,64472.0,0.00093066]
[1719120357108,1.96886032,64473.0,64472.0,0.00093066]
[1719120357309,1.91837814,64473.0,64472.0,0.00093066]
[1719120357506,1.96888544,64473.0,64472.0,0.00093066]
[1719120358810,1.98098557,64473.0,64472.0,0.00093066]
[1719120359217,1.92908557,64473.0,64472.0,0.00093066]
[1719120359645,1.98098557,64473.0,64472.0,0.00093066]
[1719120360048,1.93047827,64473.0,64472.0,0.00093066]
[1719120360248,1.98130076,64473.0,64472.0,0.00093066]
[1719120365138,1.93047827,64473.0,64472.0,0.00093066]
[1719120365344,1.98122797,64473.0,64472.0,0.00093066]
[1719120367200,1.98134512,64473.0,64472.0,0.00093066]
[1719120368644,1.97169593,64473.0,64472.0,0.00093066]
[1719120369040,1.98136058,64473.0,64472.0,0.00093066]
[1719120374815,1.98108925,64473.0,64472.0,0.00093066]
[1719120377840,1.94014254,64473.0,64472.0,0.00093066]
[1719120378173,1.98102752,64473.0,64472.0,0.00093066]
[1719120380551,1.085773,64470.0,64469.0,0.077]
[1719120380750,1.237673,64470.0,64469.0,0.077]
[1719120380976,3.02955039,64470.0,64469.0,0.077]
[1719120381176,1.28815939,64470.0,64469.0,0.077]
[1719120381378,2.84955039,64470.0,64469.0,0.077]
[1719120381601,1.28815939,64470.0,64469.0,0.077]
[1719120381778,2.84955039,64470.0,64469.0,0.077]
[1719120381992,3.02955039,64470.0,64469.0,0.077]
[1719120382548,3.03055039,64470.0,64469.0,0.077]
[1719120382731,3.03155039,64470.0,64469.0,0.077]
[1719120384076,2.91859837,64470.0,64469.0,0.077]
[1719120384427,2.85083162,64470.0,64469.0,0.077]
[1719120385551,2.85083017,64470.0,64469.0,0.077]
[1719120387029,2.800378,64470.0,64469.0,0.077]
[1719120387218,2.85083025,64470.0,64469.0,0.077]
[1719120389389,1.29012525,64470.0,64469.0,0.077]
[1719120389961,1.239673,64470.0,64469.0,0.077]
[1719120390159,1.28958581,64470.0,64469.0,0.077]
[1719120390928,3.12391881,64470.0,64469.0,0.077]
[1719120391159,2.76391881,64470.0,64469.0,0.077]
[1719120393336,2.76392263,64470.0,64469.0,0.077]
[1719120393783,2.76374048,64470.0,64469.0,0.077]
[1719120393958,1.085791,64469.0,64468.0,0.0664]
[1719120394166,3.81544989,64469.0,64468.0,0.0664]
[1719120394764,3.46972468,64469.0,64468.0,0.0664]
[1719120394932,3.28972468,64469.0,64468.0,0.0664]
[1719120395151,3.29072468,64469.0,64468.0,0.0664]
[1719120396339,3.05622065,64469.0,64468.0,0.0664]
[1719120396544,3.05722065,64469.0,64468.0,0.0664]
[1719120396900,3.00275965,64469.0,64468.0,0.0664]
[1719120397105,2.82275965,64469.0,64468.0,0.0664]
[1719120398725,2.81139665,64469.0,64468.0,0.0664]
[1719120399315,2.81139175,64469.0,64468.0,0.0664]
[1719120402431,2.81141181,64469.0,64468.0,0.0664]
[1719120402924,2.81141473,64469.0,64468.0,0.0664]
[1719120403762,2.81143294,64469.0,64468.0,0.0664]
[1719120404163,2.81143225,64469.0,64468.0,0.0664]
[1719120404381,1.085808,64468.0,64467.0,0.091161]
[1719120404514,2.73939427,64468.0,64467.0,0.091161]
[1719120405567,2.69930414,64468.0,64467.0,0.091161]
[1719120405773,2.74027961,64468.0,64467.0,0.091161]
[1719120406355,2.74127961,64468.0,64467.0,0.091161]
[1719120406801,2.09969361,64468.0,64467.0,0.091161]
[1719120407014,2.15159361,64468.0,64467.0,0.091161]
[1719120408550,2.101954,64468.0,64467.0,0.091161]
[1719120408768,2.15232565,64468.0,64467.0,0.091161]
[1719120411620,2.101954,64468.0,64467.0,0.091161]
[1719120411819,2.15229956,64468.0,64467.0,0.091161]
[1719120411980,2.14263543,64468.0,64467.0,0.091161]
[1719120412188,2.15229957,64468.0,64467.0,0.091161]
[1719120412689,1.29005357,64468.0,64467.0,0.091161]
[1719120412890,3.23613957,64468.0,64467.0,0.091161]
[1719120413445,2.87613957,64468.0,64467.0,0.091161]
[1719120413630,2.80829957,64468.0,64467.0,0.091161]
[1719120414663,2.719209,64468.0,64467.0,0.091161]
[1719120414877,2.76935769,64468.0,64467.0,0.091161]
[1719120418027,2.76906667,64468.0,64467.0,0.091161]
[1719120420626,2.719209,64468.0,64467.0,0.091161]
[1719120420811,2.76912056,64468.0,64467.0,0.091161]
[1719120421216,2.76903814,64468.0,64467.0,0.091161]
[1719120421640,2.73402914,64468.0,64467.0,0.091161]
[1719120422610,2.68212914,64468.0,64467.0,0.091161]
[1719120422815,2.73402914,64468.0,64467.0,0.091161]
[1719120423015,2.26734314,64468.0,64467.0,0.091161]
[1719120423318,2.26735659,64468.0,64467.0,0.091161]
[1719120423956,2.217514,64468.0,64467.0,0.091161]
[1719120424118,2.26734959,64468.0,64467.0,0.091161]
[1719120426411,2.26736965,64468.0,64467.0,0.091161]
[1719120426718,1.23766365,64468.0,64467.0,0.091161]
[1719120426971,2.22865865,64468.0,64467.0,0.10799215]
[1719120427342,2.16081865,64468.0,64467.0,0.091161]
[1719120429393,2.110963,64468.0,64467.0,0.009361]
[1719120429549,2.00573776,64468.0,64467.0,0.009361]
[1719120429753,2.00573777,64468.0,64467.0,0.009361]
[1719120430057,2.16085277,64468.0,64467.0,0.009361]
[1719120432510,2.16084034,64468.0,64467.0,0.009361]
[1719120438393,2.30064721,64468.0,64467.0,0.009361]
[1719120438618,2.110963,64468.0,64467.0,0.009361]
[1719120438838,2.30070666,64468.0,64467.0,0.009361]
[1719120439076,2.30064482,64468.0,64467.0,0.009361]
[1719120440354,2.30065316,64468.0,64467.0,0.009361]
[1719120441657,2.110963,64468.0,64467.0,0.009361]
[1719120441877,2.30065572,64468.0,64467.0,0.009361]
[1719120444705,2.1608398,64468.0,64467.0,0.009361]
[1719120444963,2.30085895,64468.0,64467.0,0.009361]
[1719120445596,1.42960395,64468.0,64467.0,0.009361]
[1719120446001,3.01322295,64468.0,64467.0,0.009361]
[1719120447869,3.01317807,64468.0,64467.0,0.009361]
[1719120448276,2.83302151,64468.0,64467.0,0.009361]
[1719120449323,2.83302039,64468.0,64467.0,0.009361]
[1719120450929,2.83301904,64468.0,64467.0,0.009361]
[1719120451109,2.83306063,64468.0,64467.0,0.009361]
[1719120454039,2.83306025,64468.0,64467.0,0.009361]
[1719120454496,2.79514725,64468.0,64467.0,0.009361]
[1719120455073,2.70878625,64468.0,64467.0,0.009361]
[1719120456534,1.42959725,64468.0,64467.0,0.009361]
[1719120456717,2.74398425,64468.0,64467.0,0.009361]
[1719120457735,2.74410842,64468.0,64467.0,0.009361]
[1719120460168,2.69390925,64468.0,64467.0,0.009361]
[1719120460401,2.74403858,64468.0,64467.0,0.009361]
[1719120463310,2.61335665,64468.0,64467.0,0.009361]
[1719120463486,2.6538537,64468.0,64467.0,0.009361]
[1719120464576,2.5948677,64468.0,64467.0,0.009361]
[1719120465328,2.5403797,64468.0,64467.0,0.009361]
[1719120466359,2.40056545,64468.0,64467.0,0.009361]
[1719120466529,2.54018506,64468.0,64467.0,0.009361]
[1719120467358,1.42948906,64468.0,64467.0,0.009361]
[1719120467790,2.61761806,64468.0,64467.0,0.009361]
[1719120468794,2.427837,64468.0,64467.0,0.009361]
[1719120469107,2.61761809,64468.0,64467.0,0.009361]
[1719120469711,2.61762018,64468.0,64467.0,0.009361]
[1719120472713,2.56571938,64468.0,64467.0,0.009361]
[1719120472912,2.43649338,64468.0,64467.0,0.009361]
[1719120475843,2.43639598,64468.0,64467.0,0.009361]
[1719120476186,2.43639632,64468.0,64467.0,0.009361]
[1719120477382,2.43639456,64468.0,64467.0,0.009361]
[1719120478812,2.246711,64468.0,64467.0,0.009361]
[1719120479058,2.43647766,64468.0,64467.0,0.009361]
[1719120479641,2.43648245,64468.0,64467.0,0.009361]
[1719120481245,2.43648822,64468.0,64467.0,0.009361]
[1719120484264,2.246711,64468.0,64467.0,0.009361]
[1719120484481,2.43648678,64468.0,64467.0,0.009361]
[1719120484685,2.246711,64468.0,64467.0,0.009361]
[1719120484882,2.4364868,64468.0,64467.0,0.009361]
[1719120486425,2.4364868,64468.0,64467.0,0.02619215]
[1719120486830,2.4364868,64468.0,64467.0,0.009361]
[1719120487461,2.246711,64468.0,64467.0,0.009361]
[1719120487664,2.43648014,64468.0,64467.0,0.009361]
[1719120489466,2.43733014,64468.0,64467.0,0.009361]
[1719120490542,2.43733141,64468.0,64467.0,0.009361]
[1719120493471,2.29750771,64468.0,64467.0,0.009361]
[1719120493667,2.43733709,64468.0,64467.0,0.009361]
[1719120493981,2.247561,64468.0,64467.0,0.009361]
[1719120494300,2.43734071,64468.0,64467.0,0.009361]
[1719120495424,2.4373363,64468.0,64467.0,0.009361]
[1719120495659,2.29751191,64468.0,64467.0,0.009361]
[1719120496746,2.29677618,64468.0,64467.0,0.009361]
[1719120497843,2.29751214,64468.0,64467.0,0.009361]
[1719120502271,2.29751355,64468.0,64467.0,0.009361]
[1719120502929,2.25722579,64468.0,64467.0,0.009361]
[1719120503133,2.2975136,64468.0,64467.0,0.009361]
[1719120503341,2.29751471,64468.0,64467.0,0.009361]
[1719120504634,2.29750868,64468.0,64467.0,0.009361]
[1719120505981,2.247561,64468.0,64467.0,0.009361]
[1719120506183,2.29751663,64468.0,64467.0,0.009361]
[1719120509229,2.29739862,64468.0,64467.0,0.009361]
[1719120511999,2.24549862,64468.0,64467.0,0.02619215]
[1719120512216,2.02795362,64468.0,64467.0,0.009361]
[1719120512425,2.02797457,64468.0,64467.0,0.009361]
[1719120512838,2.02832358,64468.0,64467.0,0.009361]
[1719120514402,1.29076558,64468.0,64467.0,0.009361]
[1719120514608,2.28192858,64468.0,64467.0,0.009361]
[1719120514813,2.07071358,64468.0,64467.0,0.009361]
[1719120515212,2.020506,64468.0,64467.0,0.009361]
[1719120515416,2.07090949,64468.0,64467.0,0.009361]
[1719120517547,2.01900949,64468.0,64467.0,0.009361]
[1719120517748,1.58560749,64468.0,64467.0,0.02619215]
[1719120517946,1.63750749,64468.0,64467.0,0.02619215]
[1719120518310,1.63753736,64468.0,64467.0,0.02619215]
[1719120518516,1.61668536,64468.0,64467.0,0.02619215]
[1719120518756,1.61668536,64468.0,64467.0,0.10769215]
[1719120519133,1.49324536,64468.0,64467.0,0.10769215]
[1719120519331,1.46836436,64468.0,64467.0,0.10769215]
[1719120519535,1.40264036,64468.0,64467.0,0.10769215]
[1719120519753,1.29099136,64468.0,64467.0,0.16779215]
[1719120520576,1.42694036,64468.0,64467.0,0.16779215]
[1719120521385,1.47237887,64468.0,64467.0,0.16779215]
[1719120521811,1.29211085,64468.0,64467.0,0.16779215]
[1719120522392,1.42804385,64468.0,64467.0,0.16779215]
[1719120522850,1.37614385,64468.0,64467.0,0.16779215]
[1719120522969,1.42804385,64468.0,64467.0,0.16779215]
[1719120524419,1.42806754,64468.0,64467.0,0.16779215]
[1719120525718,1.42806754,64468.0,64467.0,0.150961]
[1719120526434,1.42806754,64468.0,64467.0,0.16779215]
[1719120527546,1.42799559,64468.0,64467.0,0.16779215]
[1719120528906,1.376491,64468.0,64467.0,0.16779215]
[1719120529107,1.42810272,64468.0,64467.0,0.16779215]
[1719120530872,1.42823411,64468.0,64467.0,0.16779215]
[1719120531796,1.42823411,64468.0,64467.0,0.150961]
[1719120532009,1.42823411,64468.0,64467.0,0.16779215]
[1719120533768,1.38615577,64468.0,64467.0,0.16779215]
[1719120533971,1.42826998,64468.0,64467.0,0.16779215]
[1719120534660,1.42826998,64468.0,64467.0,0.150961]
[1719120535041,1.42826998,64468.0,64467.0,0.16779215]
[1719120535239,1.42826998,64468.0,64467.0,0.150961]
[1719120536856,1.42796245,64468.0,64467.0,0.150961]
[1719120537045,1.42796245,64468.0,64467.0,0.090861]
[1719120537616,1.37606245,64468.0,64467.0,0.090861]
[1719120537824,1.42796245,64468.0,64467.0,0.090861]
[1719120538410,1.42796245,64468.0,64467.0,0.10769215]
[1719120538611,1.42796245,64468.0,64467.0,0.09769215]
[1719120538812,1.42796245,64468.0,64467.0,0.090861]
[1719120539025,1.42796245,64468.0,64467.0,0.009361]
[1719120539562,1.42796245,64468.0,64467.0,0.02619215]
[1719120539917,1.42703776,64468.0,64467.0,0.02619215]
[1719120540324,1.376491,64468.0,64467.0,0.02619215]
[1719120540633,1.42703776,64468.0,64467.0,0.02619215]
[1719120541257,1.37513776,64468.0,64467.0,0.02619215]
[1719120541669,1.42766248,64468.0,64467.0,0.02619215]
[1719120542505,1.56746403,64468.0,64467.0,0.02619215]
[1719120543292,1.56746403,64468.0,64467.0,0.009361]
[1719120545329,1.376491,64468.0,64467.0,0.009361]
[1719120545525,1.56768319,64468.0,64467.0,0.009361]
[1719120545752,1.56768319,64468.0,64467.0,0.02453542]
[1719120545952,1.56768319,64468.0,64467.0,0.009361]
[1719120547531,1.43175019,64468.0,64467.0,0.009361]
[1719120548059,1.43175019,64468.0,64467.0,0.02453542]
[1719120548290,1.75210519,64468.0,64467.0,0.04136657]
[1719120548515,1.70073838,64468.0,64467.0,0.04136657]
[1719120548648,1.75210639,64468.0,64467.0,0.02619215]
[1719120548854,1.75210192,64468.0,64467.0,0.02619215]
[1719120551060,1.75210192,64468.0,64467.0,0.009361]
[1719120551436,1.560913,64468.0,64467.0,0.009361]
[1719120551813,1.75206631,64468.0,64467.0,0.009361]
[1719120553510,1.75206631,64468.0,64467.0,0.02619215]
[1719120554139,1.70016631,64468.0,64467.0,0.02619215]
[1719120554345,1.75206631,64468.0,64467.0,0.009361]
[1719120554759,1.75206115,64468.0,64467.0,0.02619215]
[1719120557008,1.75206115,64468.0,64467.0,0.009361]
[1719120557212,1.75206115,64468.0,64467.0,0.02619215]
[1719120557654,1.70073946,64468.0,64467.0,0.02619215]
[1719120557830,1.75215516,64468.0,64467.0,0.02619215]
[1719120558041,1.71040465,64468.0,64467.0,0.02619215]
[1719120558302,1.75215754,64468.0,64467.0,0.02619215]
[1719120559054,1.75215754,64468.0,64467.0,0.009361]
[1719120559232,1.70073946,64468.0,64467.0,0.009361]
[1719120559435,1.75215642,64468.0,64467.0,0.009361]
[1719120560802,1.75244614,64468.0,64467.0,0.009361]
[1719120563727,1.57057839,64468.0,64467.0,0.009361]
[1719120563929,1.75200379,64468.0,64467.0,0.009361]
[1719120566088,1.70010379,64468.0,64467.0,0.02619215]
[1719120566470,1.75200379,64468.0,64467.0,0.02619215]
[1719120566673,1.75200379,64468.0,64467.0,0.009361]
[1719120566870,1.560913,64468.0,64467.0,0.02619215]
[1719120567073,1.75230439,64468.0,64467.0,0.02619215]
[1719120567356,1.70074703,64468.0,64467.0,0.02619215]
[1719120567592,1.75230438,64468.0,64467.0,0.02619215]
[1719120568560,1.75282706,64468.0,64467.0,0.02619215]
[1719120569937,1.61299328,64468.0,64467.0,0.02619215]
[1719120570143,1.75282669,64468.0,64467.0,0.02619215]
[1719120573215,1.75283104,64468.0,64467.0,0.02619215]
[1719120575801,1.82082504,64468.0,64467.0,0.02619215]
[1719120576158,1.628907,64468.0,64467.0,0.02619215]
[1719120576381,1.82085301,64468.0,64467.0,0.02619215]
[1719120576527,1.68101992,64468.0,64467.0,0.02619215]
[1719120576733,1.82085301,64468.0,64467.0,0.02619215]
[1719120577953,1.82085297,64468.0,64467.0,0.02619215]
[1719120579242,1.628907,64468.0,64467.0,0.02619215]
[1719120579391,1.82085593,64468.0,64467.0,0.02619215]
[1719120579813,1.76895593,64468.0,64467.0,0.02619215]
[1719120580016,1.82085593,64468.0,64467.0,0.02619215]
[1719120582350,1.68105367,64468.0,64467.0,0.02619215]
[1719120582625,1.82088658,64468.0,64467.0,0.02619215]
[1719120583761,1.64958958,64468.0,64467.0,0.02619215]
[1719120583965,1.70148958,64468.0,64467.0,0.02619215]
[1719120585528,1.64934285,64468.0,64467.0,0.02619215]
[1719120585736,1.70182025,64468.0,64467.0,0.02619215]
[1719120585875,1.70182018,64468.0,64467.0,0.02619215]
[1719120588551,1.70183129,64468.0,64467.0,0.02619215]
[1719120589518,1.50951,64468.0,64467.0,0.02619215]
[1719120589727,1.5619999,64468.0,64467.0,0.02619215]
[1719120590770,1.55233454,64468.0,64467.0,0.02619215]
[1719120591176,1.6493427,64468.0,64467.0,0.02619215]
[1719120591379,1.70183468,64468.0,64467.0,0.02619215]
[1719120592974,1.70182753,64468.0,64467.0,0.02619215]
[1719120593354,1.70182753,64468.0,64467.0,0.009361]
[1719120594279,1.57200503,64468.0,64467.0,0.009361]
[1719120594467,1.67200503,64468.0,64467.0,0.009361]
[1719120594676,1.67200503,64468.0,64467.0,0.02619215]
[1719120594876,1.67200503,64468.0,64467.0,0.009361]
[1719120595248,1.67200945,64468.0,64467.0,0.009361]
[1719120595483,1.67283258,64468.0,64467.0,0.009361]
[1719120597340,1.40388058,64468.0,64467.0,0.009361]
[1719120598434,1.35139121,64468.0,64467.0,0.009361]
[1719120598636,1.40388207,64468.0,64467.0,0.009361]
[1719120598803,2.21841505,64468.0,64467.0,0.009361]
[1719120599592,2.17631505,64468.0,64467.0,0.009361]
[1719120599798,2.15308305,64468.0,64467.0,0.009361]
[1719120599996,2.15308429,64468.0,64467.0,0.009361]
[1719120600881,2.10059219,64468.0,64467.0,0.009361]
[1719120601029,2.15308427,64468.0,64467.0,0.009361]
[1719120603771,2.60958101,64468.0,64467.0,0.009361]
[1719120603969,2.60958101,64468.0,64464.0,0.00124102]
[1719120603970,0.775612,64465.0,64464.0,0.00124102]
[1719120604172,2.04435757,64465.0,64464.0,0.00124102]
[1719120604571,1.95254857,64465.0,64464.0,0.00124102]
[1719120604982,2.21089357,64465.0,64464.0,0.00124102]
[1719120605218,2.26379357,64465.0,64464.0,0.00124102]
[1719120605874,2.26379357,64465.0,64464.0,0.00224102]
[1719120606050,2.21289357,64465.0,64464.0,0.00224102]
[1719120606278,2.26479357,64465.0,64464.0,0.00224102]
[1719120606709,2.212292,64465.0,64464.0,0.00224102]
[1719120606882,2.27376477,64465.0,64464.0,0.00224102]
[1719120607360,2.2742681,64465.0,64464.0,0.00224102]
[1719120608370,2.27429314,64465.0,64464.0,0.00224102]
[1719120609600,2.41392428,64465.0,64464.0,0.00224102]
[1719120610437,2.41403651,64465.0,64464.0,0.00224102]
[1719120611443,2.41403651,64465.0,64464.0,0.01907217]
[1719120611620,1.70789051,64465.0,64464.0,0.00224102]
[1719120612779,1.7089755,64465.0,64464.0,0.00224102]
[1719120613610,1.56937709,64465.0,64464.0,0.00224102]
[1719120615824,1.5693853,64465.0,64464.0,0.00224102]
[1719120616228,1.52468152,64465.0,64464.0,0.00224102]
[1719120616431,1.58792504,64465.0,64464.0,0.00224102]
[1719120617566,1.58792504,64465.0,64464.0,0.00317602]
[1719120617768,1.58692504,64465.0,64464.0,0.00317602]
[1719120617934,1.58692504,64465.0,64464.0,0.00217602]
[1719120618345,1.58692504,64465.0,64464.0,0.00317602]
[1719120618569,1.58792504,64465.0,64464.0,0.00317602]
[1719120618737,1.58692504,64465.0,64464.0,0.00217602]
[1719120618923,1.5868763,64465.0,64464.0,0.00217602]
[1719120619121,1.5868763,64465.0,64464.0,0.00317602]
[1719120619122,1.5878763,64465.0,64464.0,0.00317602]
[1719120619528,1.5868763,64465.0,64464.0,0.00217602]
[1719120620962,1.5878763,64465.0,64464.0,0.00317602]
[1719120621283,1.3214873,64465.0,64464.0,0.00317602]
[1719120621525,2.4690933,64465.0,64464.0,0.00217602]
[1719120621839,2.45657269,64465.0,64464.0,0.00317602]
[1719120622170,2.47007333,64465.0,64464.0,0.00317602]
[1719120624875,2.40689852,64465.0,64464.0,0.00317602]
[1719120625073,2.47010026,64465.0,64464.0,0.00317602]
[1719120625302,2.42041295,64465.0,64464.0,0.00317602]
[1719120625615,2.46924389,64465.0,64464.0,0.00317602]
[1719120625835,2.46824389,64465.0,64464.0,0.00217602]
[1719120626035,2.46724389,64465.0,64464.0,0.00217602]
[1719120626235,2.46824389,64465.0,64464.0,0.00217602]
[1719120626441,2.46803027,64465.0,64464.0,0.00217602]
[1719120627320,2.46903027,64465.0,64464.0,0.00317602]
[1719120627747,2.46903027,64465.0,64464.0,0.00217602]
[1719120627748,2.46803027,64465.0,64464.0,0.00217602]
[1719120628091,2.46905848,64465.0,64464.0,0.00317602]
[1719120631061,2.41987676,64465.0,64464.0,0.00317602]
[1719120631257,2.4690532,64465.0,64464.0,0.00317602]
[1719120633475,2.60862332,64465.0,64464.0,0.00317602]
[1719120634253,2.60862505,64465.0,64464.0,0.00317602]
[1719120634570,2.60864689,64465.0,64464.0,0.00317602]
[1719120637241,2.55943366,64465.0,64464.0,0.00317602]
[1719120637444,2.60857387,64465.0,64464.0,0.00317602]
[1719120640064,1.45996787,64465.0,64464.0,0.00317602]
[1719120640248,3.08421867,64465.0,64464.0,0.00317602]
[1719120640416,1.45995977,64465.0,64464.0,0.00317602]
[1719120640627,3.38971077,64465.0,64464.0,0.00317602]
[1719120641033,3.19469577,64465.0,64464.0,0.00317602]
[1719120642593,3.05508885,64465.0,64464.0,0.00317602]
[1719120643373,3.05506994,64465.0,64464.0,0.00317602]
[1719120643774,2.99302852,64465.0,64464.0,0.00317602]
[1719120643980,3.0550699,64465.0,64464.0,0.00317602]
[1719120646640,2.99302852,64465.0,64464.0,0.00317602]
[1719120646840,3.05507689,64465.0,64464.0,0.00317602]
[1719120649710,3.00595172,64465.0,64464.0,0.00317602]
[1719120649912,3.05507584,64465.0,64464.0,0.00317602]
[1719120652019,3.08100319,64465.0,64464.0,0.00317602]
[1719120652788,3.08099758,64465.0,64464.0,0.00317602]
[1719120653212,3.05507022,64465.0,64464.0,0.00317602]
[1719120654821,3.06122214,64465.0,64464.0,0.00317602]
[1719120655228,3.14132214,64465.0,64464.0,0.00317602]
[1719120655926,3.07928044,64465.0,64464.0,0.00317602]
[1719120656132,3.14130329,64465.0,64464.0,0.00317602]
[1719120658341,3.14130329,64465.0,64464.0,0.001935]
[1719120658864,3.07928044,64465.0,64464.0,0.001935]
[1719120659063,3.14047204,64465.0,64464.0,0.001935]
[1719120661420,3.14061783,64465.0,64464.0,0.001935]
[1719120661570,3.07928044,64465.0,64464.0,0.001935]
[1719120661769,3.14061783,64465.0,64464.0,0.001935]
[1719120662969,3.14058316,64465.0,64464.0,0.001935]
[1719120664328,3.07928044,64465.0,64464.0,0.001935]
[1719120664533,3.14060025,64465.0,64464.0,0.001935]
[1719120667487,3.07928044,64465.0,64464.0,0.001935]
[1719120667800,1.085875,64464.0,64463.0,0.00052288]
[1719120667982,3.34014144,64464.0,64463.0,0.00052288]
[1719120670170,3.34214144,64464.0,64463.0,0.00052288]
[1719120670573,3.33936743,64464.0,64463.0,0.00052288]
[1719120670926,1.24631643,64464.0,64463.0,0.00052288]
[1719120671128,3.48115305,64464.0,64463.0,0.00052288]
[1719120671611,3.43760705,64464.0,64463.0,0.00052288]
[1719120673650,3.37927,64464.0,64463.0,0.00052288]
[1719120673854,3.43648936,64464.0,64463.0,0.00052288]
[1719120676251,3.09363736,64464.0,64463.0,0.00052288]
[1719120676650,3.09362694,64464.0,64463.0,0.00052288]
[1719120676852,3.14039111,64464.0,64463.0,0.00052288]
[1719120677050,3.09362689,64464.0,64463.0,0.00052288]
[1719120679769,3.09364802,64464.0,64463.0,0.00052288]